Workbook

Sheet Sheet1
E1: #enum 1.春|Spring 2.夏|Summer 3.秋|Autumn 4.冬|Winter | F1: #enum 1.新手期|Newbie 2.游戏前期|Early 3.游戏中期|Medium 4.游戏后期|Late | H1: 关联天气表格编号
C3: 编号 | D3: 季节名称 | E3: 季节类型 | F3: 游戏阶段 | G3: 每日起止时间 | H3: 季节天气组 | I3: 天气权重 | J3: 季节描述 | K3: 季节图片
C4: Id | D4: Name | E4: Tapy | F4: Stage | G4: DayTime | H4: WeatherGroup | I4: Weights | J4: Description | K4: Picture
C5: int | D5: string | E5: int | F5: int | G5: int[] | H5: int[] | I5: int[] | J5: string | K5: string
C6: 1 | D6: 春 | E6: 1 | F6: 1 | G6: 530,1730 | H6: 1,2 | I6: 10,1
C7: 2 | D7: 春 | E7: 1 | F7: 2 | G7: 530,1730 | H7: 2,6 | I7: 2,1
C8: 3 | D8: 夏 | E8: 2 | F8: 2 | G8: 500,1700 | H8: 1,3 | I8: 2,1
C9: 4 | D9: 秋 | E9: 3 | F9: 2 | G9: 600,1800 | H9: 1,2 | I9: 2,1
C10: 5 | D10: 冬 | E10: 4 | F10: 2 | G10: 700,1900 | H10: 2,7 | I10: 2,1
C11: 6 | D11: 春 | E11: 1 | F11: 3 | G11: 530,1730 | H11: 1,2,7,11 | I11: 30,20,10,5
C12: 7 | D12: 夏 | E12: 2 | F12: 3 | G12: 500,1700 | H12: 3,4,6,5 | I12: 30,20,10,5
C13: 8 | D13: 秋 | E13: 3 | F13: 3 | G13: 600,1800 | H13: 1,2,10 | I13: 20,20,5
C14: 9 | D14: 冬 | E14: 4 | F14: 3 | G14: 700,1900 | H14: 1,9,7,8 | I14: 2,2,2,1
C15: 10 | D15: 春 | E15: 1 | F15: 4 | G15: 530,1730 | H15: 1,2,7,11 | I15: 30,20,10,5
C16: 11 | D16: 夏 | E16: 2 | F16: 4 | G16: 500,1700 | H16: 3,4,6,5 | I16: 30,20,10,5
C17: 12 | D17: 秋 | E17: 3 | F17: 4 | G17: 600,1800 | H17: 1,2,10 | I17: 20,20,5
C18: 13 | D18: 冬 | E18: 4 | F18: 4 | G18: 700,1900 | H18: 1,9,7,8 | I18: 2,2,2,1

Sheet #权重草稿
D1: 持续8天每个季节
C3: 编号 | D3: 季节 | E3: 游戏阶段 | F3: 天气 | H3: 权重 | I3: 概率 | N3: 一个季节最多只有触发三次天气
C4: 1001 | D4: 春 | E4: 新手阶段 | F4: 大风 | G4: 1 | H4: 20 | I4: =H4/SUMIF(C:C,C4,H:H) -> 0.5 | N4: 每个季节的天气组，按权重全部触发一次后，才会重置这个组。也就是每次触发组内的某个天气后，这个天气从组内剔除，直到组重置为止。如果这个季节内天气组没有触发完，则下一个同个游戏阶段内的同个季节继续触发。
C5: 1001 | D5: 春 | E5: 新手阶段 | F5: 小雨 | G5: 2 | H5: 20 | I5: =H5/SUMIF(C:C,C5,H:H) -> 0.5
C6: 2001 | D6: 春 | E6: 游戏前期 | F6: 小雨 | G6: 2 | H6: 20 | I6: =H6/SUMIF(C:C,C6,H:H) -> 0.6666666667
C7: 2001 | D7: 春 | E7: 游戏前期 | F7: 雪 | G7: 6 | H7: 10 | I7: =H7/SUMIF(C:C,C7,H:H) -> 0.3333333333
C8: 2002 | D8: 夏 | E8: 游戏前期 | F8: 大风 | G8: 1 | H8: 20 | I8: =H8/SUMIF(C:C,C8,H:H) -> 0.6666666667
C9: 2002 | D9: 夏 | E9: 游戏前期 | F9: 暴雨 | G9: 3 | H9: 10 | I9: 0.3333333333
C10: 2003 | D10: 秋 | E10: 游戏前期 | F10: 大风 | G10: 1 | H10: 20 | I10: 0.6666666667
C11: 2003 | D11: 秋 | E11: 游戏前期 | F11: 小雨 | G11: 2 | H11: 10 | I11: 0.3333333333
C12: 2004 | D12: 冬天 | E12: 游戏前期 | F12: 大风 | G12: 2 | H12: 20 | I12: 0.6666666667
C13: 2004 | D13: 冬天 | E13: 游戏前期 | F13: 雪 | G13: 7 | H13: 10 | I13: 0.3333333333
C14: 3001 | D14: 春 | E14: 游戏中期 | F14: 大风 | G14: 1 | H14: 30 | I14: =H14/SUMIF(C:C,C14,H:H) -> 0.4615384615
C15: 3001 | D15: 春 | E15: 游戏中期 | F15: 小雨 | G15: 2 | H15: 20 | I15: =H15/SUMIF(C:C,C15,H:H) -> 0.3076923077
C16: 3001 | D16: 春 | E16: 游戏中期 | F16: 雪 | G16: 7 | H16: 10 | I16: =H16/SUMIF(C:C,C16,H:H) -> 0.1538461538
C17: 3001 | D17: 春 | E17: 游戏中期 | F17: 流感 | G17: 11 | H17: 5 | I17: =H17/SUMIF(C:C,C17,H:H) -> 0.07692307692
C18: 3002 | D18: 夏 | E18: 游戏中期 | F18: 暴雨 | G18: 3 | H18: 30 | I18: =H18/SUMIF(C:C,C18,H:H) -> 0.4
C19: 3002 | D19: 夏 | E19: 游戏中期 | F19: 雷雨 | G19: 4 | H19: 20 | I19: =H19/SUMIF(C:C,C19,H:H) -> 0.2666666667
C20: 3002 | D20: 夏 | E20: 游戏中期 | F20: 高温 | G20: 6 | H20: 20 | I20: =H20/SUMIF(C:C,C20,H:H) -> 0.2666666667
C21: 3002 | D21: 夏 | E21: 游戏中期 | F21: 冰雹 | G21: 5 | H21: 5 | I21: =H21/SUMIF(C:C,C21,H:H) -> 0.06666666667
C22: 3003 | D22: 秋 | E22: 游戏中期 | F22: 大风 | G22: 1 | H22: 20 | I22: =H22/SUMIF(C:C,C22,H:H) -> 0.4444444444
C23: 3003 | D23: 秋 | E23: 游戏中期 | F23: 小雨 | G23: 2 | H23: 20 | I23: =H23/SUMIF(C:C,C23,H:H) -> 0.4444444444
C24: 3003 | D24: 秋 | E24: 游戏中期 | F24: 地震 | G24: 10 | H24: 5 | I24: =H24/SUMIF(C:C,C24,H:H) -> 0.1111111111
C25: 3004 | D25: 冬天 | E25: 游戏中期 | F25: 大风 | G25: 1 | H25: 20 | I25: =H25/SUMIF(C:C,C25,H:H) -> 0.2857142857
C26: 3004 | D26: 冬天 | E26: 游戏中期 | F26: 寒流 | G26: 9 | H26: 20 | I26: =H26/SUMIF(C:C,C26,H:H) -> 0.2857142857
C27: 3004 | D27: 冬天 | E27: 游戏中期 | F27: 雪 | G27: 7 | H27: 20 | I27: =H27/SUMIF(C:C,C27,H:H) -> 0.2857142857
C28: 3004 | D28: 冬天 | E28: 游戏中期 | F28: 暴雪 | G28: 8 | H28: 10 | I28: =H28/SUMIF(C:C,C28,H:H) -> 0.1428571429
C29: 4001 | D29: 春 | E29: 游戏后期 | F29: 大风 | G29: 1 | H29: 30 | I29: =H29/SUMIF(C:C,C29,H:H) -> 0.4615384615
C30: 4001 | D30: 春 | E30: 游戏后期 | F30: 小雨 | G30: 2 | H30: 20 | I30: =H30/SUMIF(C:C,C30,H:H) -> 0.3076923077
C31: 4001 | D31: 春 | E31: 游戏后期 | F31: 雪 | G31: 7 | H31: 10 | I31: =H31/SUMIF(C:C,C31,H:H) -> 0.1538461538
C32: 4001 | D32: 春 | E32: 游戏后期 | F32: 流感 | G32: 11 | H32: 5 | I32: =H32/SUMIF(C:C,C32,H:H) -> 0.07692307692
C33: 4002 | D33: 夏 | E33: 游戏后期 | F33: 暴雨 | G33: 3 | H33: 30 | I33: =H33/SUMIF(C:C,C33,H:H) -> 0.4
C34: 4002 | D34: 夏 | E34: 游戏后期 | F34: 雷雨 | G34: 4 | H34: 20 | I34: =H34/SUMIF(C:C,C34,H:H) -> 0.2666666667
C35: 4002 | D35: 夏 | E35: 游戏后期 | F35: 高温 | G35: 6 | H35: 20 | I35: =H35/SUMIF(C:C,C35,H:H) -> 0.2666666667
C36: 4002 | D36: 夏 | E36: 游戏后期 | F36: 冰雹 | G36: 5 | H36: 5 | I36: =H36/SUMIF(C:C,C36,H:H) -> 0.06666666667
C37: 4003 | D37: 秋 | E37: 游戏后期 | F37: 大风 | G37: 1 | H37: 20 | I37: =H37/SUMIF(C:C,C37,H:H) -> 0.4444444444
C38: 4003 | D38: 秋 | E38: 游戏后期 | F38: 小雨 | G38: 2 | H38: 20 | I38: =H38/SUMIF(C:C,C38,H:H) -> 0.4444444444
C39: 4003 | D39: 秋 | E39: 游戏后期 | F39: 地震 | G39: 10 | H39: 5 | I39: =H39/SUMIF(C:C,C39,H:H) -> 0.1111111111
C40: 4004 | D40: 冬天 | E40: 游戏后期 | F40: 大风 | G40: 1 | H40: 20 | I40: =H40/SUMIF(C:C,C40,H:H) -> 0.2857142857
C41: 4004 | D41: 冬天 | E41: 游戏后期 | F41: 寒流 | G41: 9 | H41: 20 | I41: =H41/SUMIF(C:C,C41,H:H) -> 0.2857142857
C42: 4004 | D42: 冬天 | E42: 游戏后期 | F42: 雪 | G42: 7 | H42: 20 | I42: =H42/SUMIF(C:C,C42,H:H) -> 0.2857142857
C43: 4004 | D43: 冬天 | E43: 游戏后期 | F43: 暴雪 | G43: 8 | H43: 10 | I43: =H43/SUMIF(C:C,C43,H:H) -> 0.1428571429
